fUSD/lending_fUSD_20260408
["ID","MTS","AMOUNT","RATE_DAILY","PERIOD"]
[420063903,1775645444766,-150.0,0.00010959,2]
[420063904,1775645444777,-224.27569108,0.00010989,2]
[420063905,1775645444787,-296.41,0.00010997,2]
[420063906,1775645444797,-587.0,0.00011004,2]
[420063907,1775645444807,-5248.71090041,0.00011099,2]
[420063908,1775645444818,-5248.71090035,0.00011099,2]
[420063909,1775645444828,-5248.71090035,0.00011099,2]
[420063910,1775645444838,-5248.71090035,0.00011099,2]
[420063911,1775645444848,-5248.71090035,0.00011099,2]
[420063912,1775645444858,-5248.71090035,0.00011099,2]
[420063913,1775645444868,-5248.71090035,0.00011099,2]
[420063914,1775645444879,-5248.71090035,0.00011099,2]
[420063915,1775645444890,-5248.71090035,0.00011099,2]
[420063916,1775645444900,-5248.71090035,0.00011099,2]
[420063917,1775645444910,-407.16153677,0.0001122,2]
[420063918,1775645444919,-2000.0,0.00011301,2]
[420063919,1775645444929,-500.0,0.00011452,2]
[420063920,1775645444939,-296.41,0.00011455,2]
[420063921,1775645444949,-172.3077,0.000115,2]
[420063922,1775645444959,-179.650613,0.00011674,2]
[420063923,1775645444970,-160.0,0.00011674,2]
[420063924,1775645444981,-323.176844,0.00011674,2]
[420063925,1775645444992,-486.353689,0.00011674,2]
[420063926,1775645445002,-6011.81,0.00011692,2]
[420063927,1775645445013,-250.0,0.00011889,2]
[420063928,1775645445023,-430795.556475,0.00011912,2]
[420063929,1775645445034,-296.41,0.00011913,2]
[420063930,1775645445045,-3292.0,0.00011977,2]
[420063931,1775645445055,-823.0,0.00011977,2]
[420063932,1775645445066,-150.0,0.00012015,2]
[420063933,1775645445075,-578.20924308,0.00012029,2]
[420063934,1775645445085,-200.0,0.00012029,2]
[420063935,1775645445095,-1235.18214925,0.00012029,2]
[420063936,1775645445106,-181.08010149,0.00012029,2]
[420063937,1775645445116,-623.58710448,0.00012029,2]
[420063938,1775645445126,-500.0,0.00012029,2]
[420063939,1775645445136,-151.0,0.00012029,2]
[420063940,1775645445145,-743.50770149,0.00012029,2]
[420063941,1775645445155,-174.61919141,0.00012029,2]
[420063942,1775645445165,-170.0,0.00012029,2]
[420063943,1775645445176,-170.0,0.00012029,2]
[420063944,1775645445186,-170.0,0.00012029,2]
[420063945,1775645445196,-170.0,0.00012029,2]
[420063946,1775645445206,-170.0,0.00012029,2]
[420063947,1775645445216,-170.0,0.00012029,2]
[420063948,1775645445225,-170.0,0.00012029,2]
[420063949,1775645445235,-170.0,0.00012029,2]
[420063950,1775645445245,-170.0,0.00012029,2]
[420063951,1775645445255,-170.0,0.00012029,2]
[420063952,1775645445266,-170.0,0.00012029,2]
[420063953,1775645445276,-170.0,0.00012029,2]
[420063954,1775645445286,-170.0,0.00012029,2]
[420063955,1775645445296,-170.0,0.00012029,2]
[420063956,1775645445306,-170.0,0.00012029,2]
[420063957,1775645445316,-160.0,0.00012058,2]
[420063958,1775645445326,-308.266782,0.00012058,2]
[420063959,1775645445336,-456.533564,0.00012058,2]
[420063960,1775645445345,-500.0,0.00012084,2]
[420063961,1775645445355,-151.0,0.00012084,2]
[420063962,1775645445365,-823.0,0.00012104,2]
[420063963,1775645445375,-500.0,0.00012139,2]
[420063964,1775645445384,-151.0,0.00012139,2]
[420063965,1775645445394,-500.0,0.00012194,2]
[420063966,1775645445403,-151.0,0.00012194,2]
[420063967,1775645445413,-500.0,0.00012249,2]
[420063968,1775645445422,-151.0,0.00012249,2]
[420063969,1775645445431,-440.695697,0.00012257,2]
[420063970,1775645445441,-500.0,0.00012304,2]
[420063971,1775645445450,-151.0,0.00012304,2]
[420063972,1775645445460,-2000.0,0.00012329,2]
[420063973,1775645445470,-500.0,0.00012359,2]
[420063974,1775645445480,-151.0,0.00012359,2]
[420063975,1775645445490,-296.41,0.00012371,2]
[420063976,1775645445500,-500.0,0.00012414,2]
[420063977,1775645445509,-151.0,0.00012414,2]
[420063978,1775645445519,-150.0,0.00012446,2]
[420063979,1775645445529,-500.0,0.00012469,2]
[420063980,1775645445539,-151.0,0.00012469,2]
[420063981,1775645445549,-150.0,0.00012509,2]
[420063982,1775645445559,-500.0,0.00012524,2]
[420063983,1775645445568,-291.21499487,0.00012524,2]
[420063984,1775645445578,-197.25964234,0.00012556,2]
[420063985,1775645445588,-14234.26557313,0.00012556,2]
[420063986,1775645445597,-200.0,0.00012577,2]
[420063987,1775645445607,-1280.88388878,0.00012577,2]
[420063989,1775645445617,-187.78006525,0.00012577,2]
[420063991,1775645445626,-771.01748645,0.00012577,2]
[420063993,1775645445636,-181.08010149,0.00012577,2]
[420063995,1775645445645,-500.0,0.00012579,2]
[420063996,1775645445655,-299.38773847,0.00012628,2]
[420063997,1775645445664,-500.0,0.00012634,2]
[420063998,1775645445674,-420.363793,0.00012661,2]
[420063999,1775645445684,-500.0,0.00012689,2]
[420064000,1775645445695,-500.0,0.00012744,2]
[420064001,1775645445704,-500.0,0.00012799,2]
[420064002,1775645445715,-197.9331,0.000129,2]
[420064003,1775645445724,-1118.0,0.00012956,5]
[420064004,1775645445734,-1058.0,0.00012956,5]
[420064005,1775645445744,-250.0,0.00013,2]
[420064006,1775645445753,-200.0,0.00013125,2]
[420064007,1775645445764,-1328.27659266,0.00013125,2]
[420064008,1775645445773,-152.16310618,0.00013125,2]
[420064009,1775645445784,-799.54513345,0.00013125,2]
[420064010,1775645445794,-187.78006525,0.00013125,2]
[420064011,1775645445803,-4609.0,0.00013175,2]
[420064012,1775645445813,-1152.0,0.00013175,2]
[420064013,1775645445822,-427.30293621,0.00013225,2]
[420064014,1775645445832,-430795.556475,0.00013235,2]
[420064015,1775645445842,-151.0,0.00013235,2]
[420064016,1775645445851,-151.0,0.00013235,2]
[420064017,1775645445862,-151.0,0.00013235,2]
[420064018,1775645445871,-151.0,0.00013235,2]
[420064019,1775645445881,-151.0,0.00013235,2]
[420064020,1775645445891,-151.0,0.00013235,2]
[420064021,1775645445900,-151.0,0.00013235,2]
[420064022,1775645445911,-151.0,0.00013235,2]
[420064023,1775645445922,-151.0,0.00013235,2]
[420064024,1775645445933,-658.918959,0.00013235,2]
[420064025,1775645445943,-658.918959,0.00013235,2]
[420064026,1775645445953,-658.918959,0.00013235,2]
[420064027,1775645445963,-658.918959,0.00013235,2]
[420064028,1775645445973,-151.0,0.00013235,2]
[420064029,1775645445983,-151.0,0.00013235,2]
[420064030,1775645445993,-151.0,0.00013235,2]
[420064031,1775645446003,-941.144596,0.00013235,2]
[420064032,1775645446012,-941.144596,0.00013235,2]
[420064033,1775645446022,-941.144596,0.00013235,2]
[420064034,1775645446032,-941.144596,0.00013235,2]
[420064035,1775645446042,-150.0,0.00013289,2]
[420064036,1775645446052,-150.0,0.00013289,2]
[420064037,1775645446061,-150.0,0.00013289,2]
[420064038,1775645446071,-1152.0,0.00013315,2]
[420064039,1775645446082,-155.235029,0.0001335,2]
[420064040,1775645446092,-229.161762,0.00013425,2]
[420064041,1775645446101,-151.0,0.00013425,2]
[420064042,1775645446112,-151.0,0.00013425,2]
[420064043,1775645446122,-793.72,0.00013425,2]
[420064044,1775645446132,-151.0,0.00013425,2]
[420064045,1775645446141,-151.0,0.00013425,2]
[420064046,1775645446152,-151.0,0.00013425,2]
[420064047,1775645446162,-150.0,0.00013425,2]
[420064048,1775645446172,-150.0,0.00013425,2]
[420064049,1775645446182,-150.0,0.00013425,2]
[420064050,1775645446191,-150.0,0.00013425,2]
[420064051,1775645446201,-150.0,0.00013425,2]
[420064052,1775645446212,-174.61425545,0.00013425,2]
[420064053,1775645446222,-500.0,0.00013425,2]
[420064054,1775645446232,-500.0,0.00013425,2]
[420064055,1775645446243,-500.0,0.00013425,2]
[420064057,1775645446253,-500.0,0.00013425,2]
[420064059,1775645446264,-528.23575097,0.00013425,2]
[420064060,1775645446274,-500.0,0.00013425,2]
[420064061,1775645446285,-500.0,0.00013425,2]
[420064062,1775645446294,-500.0,0.00013425,2]
[420064063,1775645446304,-500.0,0.00013425,2]
[420064064,1775645446314,-500.0,0.00013425,2]
[420064065,1775645446324,-500.0,0.00013425,2]
[420064066,1775645446334,-500.0,0.00013425,2]
[420064067,1775645446344,-208.03469882,0.00013425,2]
[420064068,1775645446354,-717.0,0.00013425,2]
[420064069,1775645446364,-717.0,0.00013425,2]
[420064070,1775645446375,-717.0,0.00013425,2]
[420064071,1775645446386,-717.0,0.00013425,2]
[420064072,1775645446396,-717.0,0.00013425,2]
[420064073,1775645446406,-717.0,0.00013425,2]
[420064074,1775645446415,-717.0,0.00013425,2]
[420064075,1775645446425,-717.0,0.00013425,2]
[420064076,1775645446435,-717.0,0.00013425,2]
[420064077,1775645446444,-717.0,0.00013425,2]
[420064078,1775645446454,-717.0,0.00013425,2]
[420064079,1775645446463,-717.0,0.00013425,2]
[420064080,1775645446473,-717.0,0.00013425,2]
[420064081,1775645446484,-717.0,0.00013425,2]
[420064082,1775645446494,-717.0,0.00013425,2]
[420064083,1775645446504,-717.0,0.00013425,2]
[420064084,1775645446514,-717.0,0.00013425,2]
[420064085,1775645446524,-717.0,0.00013425,2]
[420064086,1775645446535,-717.0,0.00013425,2]
[420064087,1775645446545,-717.0,0.00013425,2]
[420064088,1775645446555,-717.0,0.00013425,2]
[420064089,1775645446564,-717.0,0.00013425,2]
[420064090,1775645446574,-717.0,0.00013425,2]
[420064091,1775645446584,-500.0,0.00013425,2]
[420064092,1775645446594,-500.0,0.00013425,2]
[420064093,1775645446604,-361.74732129,0.00013425,2]
[420064094,1775645446615,-735.4889753,0.00013425,2]
[420064095,1775645446625,-151.0,0.00013425,2]
[420064096,1775645446635,-151.0,0.00013425,2]
[420064097,1775645446645,-208.37237059,0.00013425,2]
[420064098,1775645446655,-150.0,0.00013425,2]
[420064099,1775645446665,-150.0,0.00013425,2]
[420064100,1775645446675,-150.0,0.00013425,2]
[420064101,1775645446685,-150.0,0.00013425,2]
[420064102,1775645446695,-245.51112262,0.00013425,2]
[420064103,1775645446705,-150.0,0.00013425,2]
[420064104,1775645446715,-150.0,0.00013425,2]
[420064105,1775645446724,-150.0,0.00013425,2]
[420064106,1775645446734,-150.0,0.00013425,2]
[420064107,1775645446743,-286.3666211,0.00013425,2]
[420064108,1775645446752,-500.0,0.00013425,2]
[420064109,1775645446762,-500.0,0.00013425,2]
[420064110,1775645446771,-500.0,0.00013425,2]
[420064111,1775645446781,-500.0,0.00013425,2]
[420064112,1775645446791,-150.0,0.00013425,2]
[420064113,1775645446801,-500.0,0.00013425,2]
[420064114,1775645446811,-150.0,0.00013425,2]
[420064115,1775645446821,-500.0,0.00013425,2]
[420064116,1775645446831,-150.0,0.00013425,2]
[420064117,1775645446840,-637.0,0.00013425,2]
[420064118,1775645446850,-500.0,0.00013425,2]
[420064119,1775645446860,-182.15202066,0.00013425,2]
[420064120,1775645446870,-637.0,0.00013425,2]
[420064121,1775645446880,-637.0,0.00013425,2]
[420064122,1775645446890,-595.10163207,0.00013425,2]
[420064123,1775645446900,-637.0,0.00013425,2]
[420064124,1775645446910,-150.0,0.00013425,2]
[420064125,1775645446921,-637.0,0.00013425,2]
[420064126,1775645446931,-150.0,0.00013425,2]
[420064127,1775645446941,-637.0,0.00013425,2]
[420064128,1775645446951,-256.56798922,0.00013425,2]
[420064129,1775645446960,-637.0,0.00013425,2]
[420064130,1775645446971,-637.0,0.00013425,2]
[420064131,1775645446980,-637.0,0.00013425,2]
[420064132,1775645446991,-637.0,0.00013425,2]
[420064133,1775645447001,-637.0,0.00013425,2]
[420064134,1775645447010,-637.0,0.00013425,2]
[420064135,1775645447020,-500.0,0.00013425,2]
[420064136,1775645447030,-637.0,0.00013425,2]
[420064137,1775645447040,-500.0,0.00013425,2]
[420064138,1775645447050,-637.0,0.00013425,2]
[420064139,1775645447060,-500.0,0.00013425,2]
[420064140,1775645447070,-500.0,0.00013425,2]
[420064141,1775645447080,-637.0,0.00013425,2]
[420064142,1775645447091,-500.0,0.00013425,2]
[420064143,1775645447101,-637.0,0.00013425,2]
[420064144,1775645447110,-500.0,0.00013425,2]
[420064145,1775645447120,-500.0,0.00013425,2]
[420064146,1775645447130,-341.376807,0.00013425,2]
[420064147,1775645447139,-637.0,0.00013425,2]
[420064148,1775645447149,-637.0,0.00013425,2]
[420064149,1775645447158,-500.0,0.00013425,2]
[420064150,1775645447167,-520.29151548,0.00013425,2]
[420064151,1775645447176,-500.0,0.00013425,2]
[420064152,1775645447186,-500.0,0.00013425,2]
[420064153,1775645447196,-500.0,0.00013425,2]
[420064154,1775645447206,-500.0,0.00013425,2]
[420064155,1775645447216,-500.0,0.00013425,2]
[420064156,1775645447226,-637.0,0.00013425,2]
[420064157,1775645447236,-500.0,0.00013425,2]
[420064158,1775645447246,-500.0,0.00013425,2]
[420064159,1775645447256,-152.12238144,0.00013425,2]
[420064160,1775645447265,-500.0,0.00013425,2]
[420064161,1775645447274,-500.0,0.00013425,2]
[420064162,1775645447284,-500.0,0.00013425,2]
[420064163,1775645447294,-500.0,0.00013425,2]
[420064164,1775645447304,-500.0,0.00013425,2]
[420064165,1775645447314,-399.40597196,0.00013425,2]
[420064166,1775645447324,-500.0,0.00013425,2]
[420064167,1775645447334,-500.0,0.00013425,2]
[420064168,1775645447343,-500.0,0.00013425,2]
[420064169,1775645447354,-500.0,0.00013425,2]
[420064170,1775645447363,-500.0,0.00013425,2]
[420064171,1775645447373,-500.0,0.00013425,2]
[420064172,1775645447383,-500.0,0.00013425,2]
[420064173,1775645447393,-637.0,0.00013425,2]
[420064174,1775645447403,-500.0,0.00013425,2]
[420064175,1775645447413,-500.0,0.00013425,2]
[420064176,1775645447422,-500.0,0.00013425,2]
[420064177,1775645447432,-412.62015671,0.00013425,2]
[420064178,1775645447442,-500.0,0.00013425,2]
[420064179,1775645447452,-500.0,0.00013425,2]
[420064180,1775645447463,-178.04125086,0.00013425,2]
[420064181,1775645447473,-500.0,0.00013425,2]
[420064182,1775645447483,-500.0,0.00013425,2]
[420064183,1775645447492,-637.0,0.00013425,2]
[420064184,1775645447502,-500.0,0.00013425,2]
[420064185,1775645447512,-644.57907854,0.00013425,2]
[420064186,1775645447521,-500.0,0.00013425,2]
[420064187,1775645447531,-500.0,0.00013425,2]
[420064188,1775645447542,-500.0,0.00013425,2]
[420064189,1775645447551,-500.0,0.00013425,2]
[420064190,1775645447561,-500.0,0.00013425,2]
[420064191,1775645447571,-500.0,0.00013425,2]
[420064192,1775645447580,-160.5097946,0.00013425,2]
[420064193,1775645447590,-500.0,0.00013425,2]
[420064194,1775645447599,-500.0,0.00013425,2]
[420064195,1775645447609,-388.39476597,0.00013425,2]
[420064196,1775645447619,-434.47425874,0.00013425,2]
[420064197,1775645447628,-637.0,0.00013425,2]
[420064198,1775645447638,-150.0,0.00013425,2]
[420064199,1775645447647,-150.0,0.00013425,2]
[420064200,1775645447657,-150.0,0.00013425,2]
[420064201,1775645447666,-150.0,0.00013425,2]
[420064202,1775645447676,-150.0,0.00013425,2]
[420064203,1775645447685,-176.0009961,0.00013425,2]
[420064204,1775645447694,-150.0,0.00013425,2]
[420064205,1775645447705,-150.0,0.00013425,2]
[420064206,1775645447714,-150.0,0.00013425,2]
[420064207,1775645447724,-150.0,0.00013425,2]
[420064208,1775645447734,-637.0,0.00013425,2]
[420064209,1775645447743,-150.0,0.00013425,2]
[420064210,1775645447753,-185.23665201,0.00013425,2]
[420064211,1775645447762,-150.88467267,0.00013425,2]
[420064212,1775645447772,-658.0,0.00013425,2]
[420064213,1775645447781,-500.0,0.00013425,2]
[420064214,1775645447791,-500.0,0.00013425,2]
[420064215,1775645447801,-500.0,0.00013425,2]
[420064216,1775645447810,-274.1065221,0.00013425,2]
[420064217,1775645447820,-160.0,0.00013615,2]
[420064218,1775645447829,-200.0,0.00013673,2]
[420064219,1775645447839,-1377.42282659,0.00013673,2]
[420064220,1775645447848,-637.10922781,0.00013673,2]
[420064221,1775645447858,-194.72792766,0.00013673,2]
[420064222,1775645447868,-150.0,0.00013699,2]
[420064223,1775645447877,-150.0,0.00013699,2]
[420064224,1775645447886,-150.0,0.00013699,2]
[420064225,1775645447895,-200.0,0.00013699,2]
[420064226,1775645447905,-151.0,0.00013699,2]
[420064227,1775645447915,-151.0,0.00013699,2]
[420064228,1775645447925,-151.0,0.00013699,2]
[420064229,1775645447934,-151.0,0.00013699,2]
[420064230,1775645447944,-221.927431,0.00013699,2]
[420064231,1775645447954,-151.0,0.00013699,2]
[420064232,1775645448172,-151.0,0.00013699,2]
[420064233,1775645448183,-151.0,0.00013699,2]
[420064234,1775645448193,-151.0,0.00013699,2]
[420064235,1775645448204,-151.0,0.00013699,2]
[420064236,1775645448213,-152.771968,0.00013699,2]
[420064237,1775645448223,-170.217695,0.00013699,2]
[420064238,1775645448232,-170.217695,0.00013699,2]
[420064239,1775645448243,-151.0,0.00013699,2]
[420064240,1775645448253,-178.206032,0.00013699,2]
[420064241,1775645448263,-178.206032,0.00013699,2]
[420064242,1775645448273,-178.206032,0.00013699,2]
[420064243,1775645448282,-178.206032,0.00013699,2]
[420064244,1775645448292,-151.0,0.00013699,2]
[420064245,1775645448302,-151.0,0.00013699,2]
[420064246,1775645448311,-170.217695,0.00013699,2]
[420064247,1775645448321,-162.763813,0.00013699,2]
[420064248,1775645448331,-231.247799,0.00013699,2]
[420064249,1775645448341,-170.217695,0.00013699,2]
[420064250,1775645448351,-162.763813,0.00013699,2]
[420064251,1775645448361,-162.763813,0.00013699,2]
[420064252,1775645448371,-162.763813,0.00013699,2]
[420064253,1775645448381,-151.0,0.00013699,2]
[420064254,1775645448390,-151.0,0.00013699,2]
[420064255,1775645448400,-151.0,0.00013699,2]
[420064256,1775645448410,-151.0,0.00013699,2]
[420064257,1775645448421,-151.0,0.00013699,2]
[420064258,1775645448430,-151.0,0.00013699,2]
[420064259,1775645448440,-151.0,0.00013699,2]
[420064260,1775645448450,-151.0,0.00013699,2]
[420064261,1775645448459,-151.0,0.00013699,2]
[420064262,1775645448469,-151.0,0.00013699,2]
[420064263,1775645448478,-151.0,0.00013699,2]
[420064264,1775645448488,-940.785029,0.00013699,2]
[420064265,1775645448498,-151.0,0.00013699,2]
[420064266,1775645448507,-203.119625,0.00013699,2]
[420064267,1775645448517,-151.0,0.00013699,2]
[420064268,1775645448527,-940.785029,0.00013699,2]
[420064269,1775645448536,-151.0,0.00013699,2]
[420064270,1775645448546,-940.785029,0.00013699,2]
[420064271,1775645448556,-203.119625,0.00013699,2]
[420064272,1775645448567,-151.0,0.00013699,2]
[420064273,1775645448576,-940.785029,0.00013699,2]
[420064274,1775645448586,-203.119625,0.00013699,2]
[420064275,1775645448596,-151.0,0.00013699,2]
[420064276,1775645448606,-203.119625,0.00013699,2]
[420064277,1775645448616,-151.0,0.00013699,2]
[420064278,1775645448626,-199.339315,0.00013699,2]
[420064279,1775645448648,-295.044252,0.00013699,2]
[420064280,1775645448659,-151.0,0.00013699,2]
[420064281,1775645449091,-199.339315,0.00013699,2]
[420064282,1775645449104,-165.05231,0.00013699,2]
[420064283,1775645449115,-199.339315,0.00013699,2]
[420064284,1775645449126,-151.0,0.00013699,2]
[420064285,1775645449136,-199.339315,0.00013699,2]
[420064286,1775645449147,-151.0,0.00013699,2]
[420064287,1775645449158,-165.05231,0.00013699,2]
[420064288,1775645449168,-151.0,0.00013699,2]
[420064289,1775645449179,-165.05231,0.00013699,2]
[420064290,1775645449189,-165.05231,0.00013699,2]
[420064291,1775645449198,-156.678523,0.00013699,2]
[420064292,1775645449209,-151.943,0.00013699,2]
[420064293,1775645449219,-151.0,0.00013699,2]
[420064294,1775645449230,-151.943,0.00013699,2]
[420064295,1775645449241,-156.678523,0.00013699,2]
[420064296,1775645449251,-151.0,0.00013699,2]
[420064297,1775645449262,-151.943,0.00013699,2]
[420064298,1775645449272,-156.678523,0.00013699,2]
[420064299,1775645449283,-151.0,0.00013699,2]
[420064300,1775645449293,-151.943,0.00013699,2]
[420064301,1775645449303,-156.678523,0.00013699,2]
[420064302,1775645449313,-151.0,0.00013699,2]
[420064303,1775645449325,-151.0,0.00013699,2]
[420064304,1775645449336,-151.0,0.00013699,2]
[420064305,1775645449346,-151.0,0.00013699,2]
[420064306,1775645449356,-151.0,0.00013699,2]
[420064307,1775645449366,-151.0,0.00013699,2]
[420064308,1775645449376,-151.0,0.00013699,2]
[420064309,1775645449387,-151.0,0.00013699,2]
[420064310,1775645449398,-151.742106,0.00013699,2]
[420064311,1775645449408,-158.603136,0.00013699,2]
[420064312,1775645449418,-369.05,0.00013699,2]
[420064313,1775645449428,-369.05,0.00013699,2]
[420064314,1775645449438,-151.0,0.00013699,2]
[420064315,1775645449448,-369.05,0.00013699,2]
[420064316,1775645449458,-151.0,0.00013699,2]
[420064317,1775645449468,-369.05,0.00013699,2]
[420064318,1775645449479,-151.0,0.00013699,2]
[420064319,1775645449489,-151.0,0.00013699,2]
[420064320,1775645449499,-161.994257,0.00013699,2]
[420064321,1775645449515,-151.0,0.00013699,2]
[420064322,1775645449525,-151.0,0.00013699,2]
[420064323,1775645449535,-161.994257,0.00013699,2]
[420064324,1775645449546,-161.994257,0.00013699,2]
[420064325,1775645449556,-161.994257,0.00013699,2]
[420064326,1775645449567,-232.700006,0.00013699,2]
[420064327,1775645449577,-151.0,0.00013699,2]
[420064328,1775645449587,-232.700006,0.00013699,2]
[420064329,1775645449597,-151.0,0.00013699,2]
[420064330,1775645449608,-310.772976,0.00013699,2]
[420064331,1775645449618,-232.700006,0.00013699,2]
[420064332,1775645449628,-310.772976,0.00013699,2]
[420064333,1775645449639,-232.700006,0.00013699,2]
[420064334,1775645449649,-310.772976,0.00013699,2]
[420064335,1775645449659,-310.772976,0.00013699,2]
[420064336,1775645449670,-288.031988,0.00013699,2]
[420064337,1775645449681,-288.031988,0.00013699,2]
[420064338,1775645449691,-151.0,0.00013699,2]
[420064339,1775645449702,-606.860603,0.00013699,2]
[420064340,1775645449712,-288.031988,0.00013699,2]
[420064341,1775645449723,-179.376674,0.00013699,2]
[420064342,1775645449734,-151.0,0.00013699,2]
[420064343,1775645449745,-606.860603,0.00013699,2]
[420064344,1775645449755,-288.031988,0.00013699,2]
[420064345,1775645449765,-179.376674,0.00013699,2]
[420064346,1775645449777,-218.2,0.00013699,2]
[420064347,1775645449788,-606.860603,0.00013699,2]
[420064348,1775645449799,-179.376674,0.00013699,2]
[420064349,1775645449809,-151.0,0.00013699,2]
[420064350,1775645449819,-606.860603,0.00013699,2]
[420064351,1775645449830,-151.0,0.00013699,2]
[420064352,1775645449840,-179.376674,0.00013699,2]
[420064353,1775645449851,-151.0,0.00013699,2]
[420064354,1775645449861,-151.0,0.00013699,2]
[420064355,1775645449871,-151.0,0.00013699,2]
[420064356,1775645449880,-151.0,0.00013699,2]
[420064357,1775645449890,-151.0,0.00013699,2]
[420064358,1775645449900,-151.0,0.00013699,2]
[420064359,1775645449911,-151.0,0.00013699,2]
[420064360,1775645449921,-151.0,0.00013699,2]
[420064361,1775645449931,-151.0,0.00013699,2]
[420064362,1775645449942,-151.0,0.00013699,2]
[420064363,1775645449953,-151.0,0.00013699,2]
[420064364,1775645449963,-151.0,0.00013699,2]
[420064365,1775645449973,-151.0,0.00013699,2]
[420064366,1775645449984,-151.0,0.00013699,2]
[420064367,1775645449994,-151.0,0.00013699,2]
[420064368,1775645450005,-151.0,0.00013699,2]
[420064369,1775645450019,-307.030387,0.00013699,2]
[420064370,1775645450030,-307.030387,0.00013699,2]
[420064371,1775645450040,-151.0,0.00013699,2]
[420064372,1775645450051,-307.030387,0.00013699,2]
[420064373,1775645450061,-151.0,0.00013699,2]
[420064374,1775645450071,-307.030387,0.00013699,2]
[420064375,1775645450082,-151.0,0.00013699,2]
[420064376,1775645450092,-151.0,0.00013699,2]
[420064377,1775645450103,-151.0,0.00013699,2]
[420064378,1775645450113,-256.960367,0.00013699,2]
[420064379,1775645450125,-151.0,0.00013699,2]
[420064380,1775645450135,-256.960367,0.00013699,2]
[420064381,1775645450146,-228.680597,0.00013699,2]
[420064382,1775645450156,-168.042523,0.00013699,2]
[420064383,1775645450167,-256.960367,0.00013699,2]
[420064384,1775645450177,-151.0,0.00013699,2]
[420064385,1775645450187,-168.042523,0.00013699,2]
[420064386,1775645450197,-151.0,0.00013699,2]
[420064387,1775645450207,-256.960367,0.00013699,2]
[420064388,1775645450218,-151.0,0.00013699,2]
[420064389,1775645450228,-168.042523,0.00013699,2]
[420064390,1775645450239,-151.0,0.00013699,2]
[420064391,1775645450249,-892.21053,0.00013699,2]
[420064392,1775645450259,-611.814135,0.00013699,2]
[420064393,1775645450269,-151.0,0.00013699,2]
[420064394,1775645450280,-168.042523,0.00013699,2]
[420064395,1775645450290,-892.21053,0.00013699,2]
[420064396,1775645450300,-611.814135,0.00013699,2]
[420064397,1775645450310,-177.008869,0.00013699,2]
[420064398,1775645450320,-241.925939,0.00013699,2]
[420064399,1775645450330,-892.21053,0.00013699,2]
[420064400,1775645450340,-177.008869,0.00013699,2]
[420064401,1775645450350,-222.591544,0.00013699,2]
[420064402,1775645450360,-151.0,0.00013699,2]
[420064403,1775645450370,-892.21053,0.00013699,2]
[420064404,1775645450380,-177.008869,0.00013699,2]
[420064405,1775645450390,-222.591544,0.00013699,2]
[420064406,1775645450400,-177.799501,0.00013699,2]
[420064407,1775645450411,-151.0,0.00013699,2]
[420064408,1775645450421,-177.008869,0.00013699,2]